bitfinex/quotes_SOLUSD_20250420
["timestamp","ask_amount","ask_price","bid_price","bid_amount"]
[1745159344862,0.063,137.11,137.1,55.54121652]
[1745159345158,0.063,137.11,137.1,56.9991065]
[1745159345358,0.063,137.12,137.1,56.9991065]
[1745159345543,0.063,137.12,137.11,68.8778383]
[1745159346050,0.063,137.15,137.13,19.64964886]
[1745159346243,0.063,137.15,137.13,53.86871136]
[1745159346563,0.063,137.15,137.13,31.99871136]
[1745159346747,0.063,137.15,137.14,44.64964886]
[1745159347055,0.063,137.15,137.14,55.54121652]
[1745159348540,0.063,137.15,137.14,36.89156766]
[1745159350143,0.063,137.15,137.14,56.99880465]
[1745159350357,0.063,137.15,137.14,55.54121652]
[1745159355272,0.063,137.15,137.14,319.66121652]
[1745159358376,0.063,137.15,137.14,301.01156766]
[1745159358678,0.063,137.15,137.14,290.12]
[1745159359374,0.063,137.15,137.14,264.12]
[1745159363372,10.95456766,137.15,137.14,264.12]
[1745159368780,0.063,137.15,137.14,264.12]
[1745159368966,0.063,137.15,137.14,275.01156766]
[1745159371299,10.95456766,137.15,137.14,264.12]
[1745159372481,0.063,137.15,137.14,264.12]
[1745159372672,10.95456766,137.15,137.14,264.12]
[1745159372985,0.063,137.15,137.14,264.12]
[1745159377289,0.063,137.15,137.14,275.01156766]
[1745159380306,0.063,137.15,137.14,264.12]
[1745159394108,0.063,137.15,137.14,275.01156766]
[1745159396303,0.063,137.15,137.14,264.12]
[1745159402481,0.063,137.15,137.14,275.01156766]
[1745159402898,0.063,137.15,137.14,293.66121652]
[1745159403413,0.063,137.16,137.15,19.64964886]
[1745159403589,0.063,137.16,137.15,41.77670721]
[1745159403787,0.063,137.17,137.16,36.89156766]
[1745159404001,0.063,137.18,137.16,57.16011652]
[1745159404201,0.063,137.18,137.17,10.89156766]
[1745159404412,0.063,137.19,137.18,44.64964886]
[1745159404589,0.063,137.19,137.18,55.54121652]
[1745159406607,0.063,137.19,137.18,36.89156766]
[1745159410438,0.063,137.19,137.16,18.64964886]
[1745159410602,10.95456766,137.19,137.14,275.01156766]
[1745159410908,0.063,137.19,137.15,14.4]
[1745159411112,0.063,137.19,137.18,10.89156766]
[1745159411321,0.063,137.19,137.18,55.54121652]
[1745159416337,0.063,137.19,137.18,29.54121652]
[1745159416522,0.063,137.22,137.19,30.54121652]
[1745159417540,0.063,137.22,137.19,74.10748716]
[1745159418039,0.063,137.22,137.19,73.10748716]
[1745159418213,0.063,137.22,137.19,74.10748716]
[1745159418628,0.063,137.22,137.19,30.54121652]
[1745159421442,0.063,137.22,137.19,29.54121652]
[1745159421639,0.063,137.22,137.19,30.54121652]
[1745159422347,0.063,137.22,137.19,29.54121652]
[1745159422526,0.063,137.22,137.19,30.54121652]
[1745159422947,0.063,137.22,137.19,280.10121652]
[1745159424639,0.063,137.25,137.21,19.64964886]
[1745159424836,0.063,137.25,137.24,29.54121652]
[1745159426542,0.063,137.25,137.24,55.54121652]
[1745159426836,0.063,137.25,137.24,61.27047704]
[1745159427535,0.063,137.25,137.24,36.27047704]
[1745159429336,0.063,137.25,137.24,30.54121652]
[1745159431940,0.063,137.25,137.24,29.54121652]
[1745159432149,0.063,137.25,137.24,280.02121652]
[1745159438242,0.063,137.25,137.24,279.02121652]
[1745159438559,0.063,137.25,137.24,280.02121652]
[1745159438756,0.063,137.25,137.24,279.02121652]
[1745159439659,0.063,137.25,137.24,280.02121652]
[1745159442649,0.063,137.25,137.24,279.02121652]
[1745159443241,0.063,137.25,137.24,280.02121652]
[1745159444067,0.063,137.25,137.24,279.02121652]
[1745159444361,0.063,137.25,137.24,280.02121652]
[1745159446663,0.063,137.25,137.24,294.42121652]
[1745159447162,0.063,137.25,137.24,293.42121652]
[1745159452253,0.063,137.25,137.24,294.42121652]
[1745159452657,1.1923,137.31,137.25,19.64964886]
[1745159452854,1.1923,137.31,137.29,10.89156766]
[1745159453153,1.1923,137.31,137.3,14.4]
[1745159453551,12.08386766,137.31,137.3,14.4]
[1745159453867,1.1923,137.31,137.3,14.4]
[1745159456265,12.08386766,137.31,137.3,14.4]
[1745159457066,12.08386766,137.31,137.3,263.84]
[1745159458766,0.7693,137.3,137.22,10.89156766]
[1745159458967,10.89156766,137.24,137.18,24.4052529]
[1745159459166,10.89156766,137.25,137.16,82.33]
[1745159459352,10.89156766,137.25,137.21,26.0]
[1745159459755,10.89156766,137.24,137.16,5.83163181]
[1745159460061,10.89156766,137.23,137.16,5.83163181]
[1745159460256,10.89156766,137.21,137.16,10.92156766]
[1745159460466,12.51886766,137.21,137.16,10.92156766]
[1745159460773,1.6273,137.21,137.17,10.89156766]
[1745159460959,1.6273,137.21,137.17,26.0]
[1745159460960,12.51886766,137.21,137.17,26.0]
[1745159461676,12.51886766,137.21,137.17,36.89156766]
[1745159461970,12.51886766,137.21,137.17,10.89156766]
[1745159462166,12.51886766,137.21,137.17,36.89156766]
[1745159463274,1.6273,137.21,137.17,36.89156766]
[1745159464382,12.51886766,137.21,137.17,26.0]
[1745159464559,12.51886766,137.21,137.16,10.92156766]
[1745159464879,10.89156766,137.2,137.16,0.03]
[1745159465259,10.89156766,137.2,137.17,263.94]
[1745159467074,84.0273,137.21,137.17,263.94]
[1745159467386,84.0273,137.21,137.18,10.89156766]
[1745159467770,84.0273,137.21,137.17,274.83156766]
[1745159467963,84.0273,137.21,137.18,10.89156766]
[1745159468475,84.0273,137.21,137.17,274.83156766]
[1745159471986,84.0273,137.21,137.18,10.89156766]
[1745159472188,94.87246766,137.24,137.19,10.89156766]
[1745159472365,82.4,137.23,137.19,10.89156766]
[1745159472980,82.4,137.23,137.2,10.89156766]
[1745159473176,82.4,137.23,137.21,14.4]
[1745159477889,82.4,137.23,137.22,249.58]
[1745159478786,93.29156766,137.23,137.22,249.58]
[1745159480971,82.4,137.23,137.22,249.58]
[1745159495302,82.4,137.27,137.22,260.47156766]
[1745159495485,82.4,137.26,137.24,10.89156766]
[1745159496683,82.4,137.26,137.25,10.89156766]
[1745159497001,82.4,137.29,137.25,10.89156766]
[1745159497193,82.4,137.29,137.27,10.89156766]
[1745159498006,82.4,137.29,137.26,25.29156766]
[1745159500605,93.29156766,137.29,137.26,14.4]
[1745159500804,10.89156766,137.28,137.26,14.4]
[1745159501804,82.4,137.29,137.26,14.4]
[1745159502003,82.4,137.29,137.26,25.29156766]
[1745159502502,82.4,137.29,137.27,10.89156766]
[1745159507490,0.063,137.31,137.27,10.89156766]
[1745159507810,0.063,137.31,137.28,10.89156766]
[1745159509914,0.063,137.31,137.27,10.89156766]
[1745159510895,0.063,137.31,137.28,10.89156766]
[1745159512515,0.063,137.31,137.29,249.48]
[1745159514216,10.89156766,137.3,137.29,249.48]
[1745159514406,93.29156766,137.3,137.29,249.48]
[1745159515318,82.4,137.3,137.29,249.48]
[1745159515504,93.29156766,137.3,137.29,249.48]
[1745159517415,93.29156766,137.3,137.29,263.88]
[1745159518812,10.89156766,137.3,137.29,263.88]
[1745159524624,57.17991652,137.3,137.29,263.88]
[1745159524921,63.28291652,137.3,137.29,263.88]
[1745159525298,62.78291652,137.3,137.29,263.88]
[1745159525702,26.0,137.27,137.26,249.48]
[1745159525909,36.89156766,137.27,137.26,263.88]
[1745159526104,55.54121652,137.27,137.26,263.88]
[1745159527127,57.17991652,137.27,137.26,263.88]
[1745159527307,63.28291652,137.27,137.22,0.03]
[1745159527508,10.89156766,137.23,137.22,0.03]
[1745159535323,10.89156766,137.23,137.22,264.01]
[1745159536623,82.4,137.26,137.22,264.01]
[1745159536828,82.4,137.25,137.22,274.90156766]
[1745159537332,82.4,137.25,137.23,10.89156766]
[1745159537836,82.4,137.25,137.22,274.90156766]
[1745159538340,93.29156766,137.25,137.22,264.01]
[1745159538717,82.4,137.25,137.22,264.01]
[1745159539730,93.29156766,137.25,137.22,264.01]
[1745159540250,10.89156766,137.23,137.22,264.01]
[1745159547240,29.54121652,137.23,137.22,264.01]
[1745159549630,29.54121652,137.23,137.2,249.62]
[1745159549631,44.64964886,137.21,137.2,249.62]
[1745159549829,55.54121652,137.21,137.2,264.02]
[1745159559357,26.0,137.21,137.2,264.02]
[1745159559663,6.3643,137.25,137.2,264.02]
[1745159559664,10.89156766,137.23,137.2,264.02]
[1745159560248,10.89156766,137.22,137.2,264.02]
[1745159562163,26.0,137.24,137.2,264.02]
[1745159562671,10.89156766,137.25,137.2,274.91156766]
[1745159563045,10.89156766,137.24,137.2,264.02]
[1745159563268,1.5066,137.3,137.2,274.91156766]
[1745159563569,10.89156766,137.26,137.21,12.53116766]
[1745159563873,10.89156766,137.25,137.21,1.6396]
[1745159564174,82.4,137.23,137.21,1.6396]
[1745159565958,82.4,137.23,137.22,10.89156766]
[1745159566360,82.4,137.26,137.22,10.89156766]
[1745159566553,82.4,137.26,137.23,10.89156766]
[1745159568374,82.4,137.26,137.22,10.89156766]
[1745159568575,10.89156766,137.25,137.21,1.6396]
[1745159568754,10.89156766,137.24,137.21,1.6396]
[1745159570769,10.89156766,137.24,137.2,270.1039]
[1745159571275,10.89156766,137.24,137.2,264.02]
[1745159571466,10.89156766,137.23,137.2,264.02]
[1745159573581,10.89156766,137.24,137.2,264.02]
[1745159574675,82.4,137.23,137.2,264.02]
[1745159576670,82.4,137.23,137.21,264.0]
[1745159578474,93.29156766,137.23,137.21,264.0]
[1745159578676,10.89156766,137.22,137.21,264.0]
[1745159578981,93.29156766,137.23,137.21,264.0]
[1745159579360,82.4,137.23,137.21,264.0]
[1745159583988,10.89156766,137.22,137.21,264.0]
[1745159589080,7.6759,137.27,137.21,264.0]
[1745159589290,82.4,137.26,137.21,274.89156766]
[1745159589601,82.4,137.26,137.23,10.89156766]
[1745159590081,82.4,137.26,137.21,264.0]
[1745159590082,93.29156766,137.26,137.21,274.89156766]
[1745159590282,82.4,137.26,137.24,10.89156766]
[1745159590481,82.4,137.26,137.23,10.89156766]
[1745159590697,82.4,137.26,137.22,10.89156766]
[1745159591077,82.4,137.26,137.24,10.89156766]
[1745159593692,82.4,137.26,137.23,10.89156766]
[1745159595779,82.4,137.26,137.24,10.89156766]
[1745159596388,82.4,137.26,137.25,10.89156766]
[1745159599402,82.4,137.26,137.24,10.89156766]
[1745159600687,82.4,137.26,137.22,10.89156766]
[1745159600894,82.4,137.26,137.23,10.89156766]
[1745159601276,93.29156766,137.26,137.21,264.0]
[1745159601481,10.89156766,137.25,137.21,264.0]
[1745159601677,10.89156766,137.25,137.21,274.89156766]
[1745159601883,82.4,137.26,137.22,10.89156766]
[1745159602083,82.4,137.26,137.23,10.89156766]
[1745159602285,82.4,137.26,137.25,10.89156766]
[1745159602491,82.4,137.28,137.25,10.89156766]
[1745159602804,82.4,137.28,137.26,14.4]
[1745159602990,82.4,137.28,137.27,14.4]
[1745159606310,82.4,137.28,137.27,263.94]
[1745159622529,93.29156766,137.3,137.27,263.94]
[1745159622731,82.4,137.3,137.27,274.83156766]
[1745159623315,0.063,137.31,137.27,274.83156766]
[1745159624433,0.063,137.31,137.28,10.89156766]
[1745159632640,0.063,137.31,137.27,263.94]
[1745159632822,10.95456766,137.31,137.27,263.94]
[1745159633448,82.4,137.3,137.27,263.94]
[1745159634523,82.4,137.3,137.28,10.89156766]
[1745159635122,82.4,137.3,137.29,10.89156766]
[1745159635322,82.4,137.3,137.28,10.89156766]
[1745159637821,0.063,137.31,137.29,10.89156766]
[1745159638355,0.063,137.31,137.3,10.89156766]
[1745159641838,0.063,137.31,137.29,10.89156766]
[1745159643657,0.063,137.31,137.28,10.89156766]
[1745159645039,0.063,137.31,137.29,14.38]
[1745159645246,0.063,137.31,137.29,25.27156766]
[1745159646538,0.063,137.31,137.3,10.89156766]
[1745159646930,0.063,137.31,137.29,14.38]
[1745159647141,0.063,137.31,137.3,10.89156766]
[1745159648066,0.063,137.31,137.29,14.38]
[1745159648268,0.063,137.31,137.29,25.27156766]
[1745159648452,0.063,137.31,137.29,14.38]
[1745159648654,0.063,137.31,137.29,25.27156766]
[1745159648843,0.063,137.31,137.3,10.89156766]
[1745159649770,0.063,137.31,137.3,260.33156766]
[1745159652373,0.063,137.31,137.3,249.44]
[1745159652745,0.063,137.31,137.3,260.33156766]
[1745159653854,0.063,137.31,137.3,278.98121652]
[1745159654251,0.063,137.32,137.31,18.64964886]
[1745159654454,0.063,137.32,137.31,29.54121652]
[1745159657164,0.063,137.32,137.31,10.89156766]
[1745159657574,0.063,137.32,137.3,249.44]
[1745159657575,0.063,137.32,137.3,260.33156766]
[1745159658062,0.063,137.32,137.31,10.89156766]
[1745159663257,0.063,137.32,137.3,260.33156766]
[1745159663568,0.063,137.32,137.31,10.89156766]
[1745159664959,0.063,137.32,137.3,249.44]
[1745159665161,10.95456766,137.32,137.3,249.44]
[1745159668674,0.063,137.32,137.3,249.44]
[1745159669762,0.063,137.32,137.3,260.33156766]
[1745159670154,0.063,137.32,137.31,10.89156766]
[1745159675075,0.063,137.32,137.3,275.44]
[1745159675261,0.063,137.32,137.3,286.33156766]
[1745159675462,0.063,137.32,137.3,275.44]
[1745159678264,10.95456766,137.32,137.3,275.44]
[1745159678457,10.95456766,137.32,137.3,249.44]
[1745159678658,0.063,137.32,137.3,249.44]
[1745159678863,0.063,137.32,137.3,260.33156766]
[1745159679058,0.063,137.32,137.31,10.89156766]
[1745159679455,1.4129,137.35,137.31,10.89156766]
[1745159679663,83.8129,137.35,137.31,10.89156766]
[1745159680079,94.70446766,137.35,137.31,10.89156766]
[1745159681775,83.8129,137.35,137.31,10.89156766]
[1745159682284,83.8129,137.35,137.33,10.89156766]
[1745159682285,82.4,137.35,137.33,10.89156766]
[1745159683177,0.063,137.36,137.33,10.89156766]
[1745159685374,0.063,137.36,137.32,25.27156766]
[1745159687386,10.95456766,137.36,137.32,25.27156766]
[1745159687582,10.89156766,137.34,137.32,14.38]
[1745159688870,10.89156766,137.35,137.32,14.38]
[1745159689092,93.29156766,137.35,137.32,14.38]
[1745159690193,82.4,137.35,137.32,14.38]
[1745159690395,82.4,137.35,137.32,25.27156766]
[1745159690987,82.4,137.35,137.32,14.38]
[1745159691688,82.4,137.35,137.33,249.38]
[1745159692096,93.29156766,137.35,137.33,249.38]
[1745159696499,93.29156766,137.35,137.34,14.38]
[1745159697780,82.4,137.35,137.34,14.38]
[1745159700089,93.29156766,137.35,137.34,14.38]
[1745159700801,10.89156766,137.35,137.34,14.38]
[1745159711009,29.54121652,137.35,137.34,14.38]
[1745159713107,26.0,137.32,137.31,249.42]
[1745159713308,6.0752,137.31,137.26,0.063]
[1745159713508,10.89156766,137.27,137.26,0.063]
[1745159715106,10.89156766,137.27,137.26,249.483]
[1745159715410,10.89156766,137.27,137.26,263.863]
[1745159715907,55.54121652,137.27,137.18,6.0781]
[1745159716118,36.89156766,137.25,137.18,0.063]
[1745159716990,36.89156766,137.25,137.18,10.95456766]
[1745159717296,10.89156766,137.25,137.19,10.89156766]
[1745159717492,10.89156766,137.26,137.21,10.89156766]
[1745159717910,27.5757,137.28,137.21,10.89156766]
[1745159718214,10.89156766,137.26,137.21,10.89156766]
[1745159719415,10.89156766,137.25,137.2,12.42376766]
[1745159720611,93.29156766,137.27,137.22,10.89156766]
[1745159721001,10.89156766,137.26,137.21,10.89156766]
[1745159721206,10.89156766,137.25,137.2,12.42376766]
[1745159725095,10.89156766,137.25,137.24,263.93]
[1745159728412,36.89156766,137.26,137.24,263.93]
[1745159729015,10.89156766,137.26,137.24,263.93]
[1745159730025,10.89156766,137.25,137.24,263.93]
[1745159731106,10.89156766,137.27,137.24,263.93]
[1745159731301,26.0,137.29,137.24,263.93]
[1745159731507,10.89156766,137.27,137.24,263.93]
[1745159733032,10.89156766,137.26,137.24,263.93]
[1745159733510,10.89156766,137.25,137.24,263.93]
[1745159740023,10.89156766,137.25,137.24,249.55]
[1745159740223,10.89156766,137.25,137.24,263.93]
[1745159741435,26.0,137.29,137.24,263.93]
[1745159741637,10.89156766,137.27,137.24,263.93]
[1745159741934,82.4,137.26,137.24,263.93]
[1745159743245,93.29156766,137.26,137.24,263.93]
[1745159744044,10.89156766,137.25,137.24,263.93]
[1745159744533,93.29156766,137.26,137.24,263.93]
[1745159746418,82.4,137.26,137.24,263.93]
[1745159746623,93.29156766,137.26,137.24,263.93]
[1745159749240,82.4,137.26,137.24,263.93]
[1745159749430,82.4,137.26,137.24,274.82156766]
[1745159750046,93.29156766,137.29,137.24,274.82156766]
[1745159750340,82.4,137.31,137.27,10.89156766]
[1745159750539,82.4,137.31,137.28,10.89156766]
[1745159750730,82.4,137.31,137.29,14.38]
[1745159751442,82.4,137.31,137.29,25.27156766]
[1745159751747,0.063,137.32,137.3,10.89156766]
[1745159752047,0.063,137.32,137.31,10.89156766]
[1745159754243,0.063,137.32,137.3,10.89156766]
[1745159754548,0.063,137.32,137.29,51.27156766]
[1745159755042,0.063,137.32,137.3,10.89156766]
[1745159755435,72.463,137.34,137.3,10.89156766]
[1745159756852,72.463,137.34,137.31,10.89156766]
[1745159757029,83.41756766,137.36,137.31,10.89156766]
[1745159757651,72.526,137.36,137.32,10.89156766]
[1745159758545,72.526,137.36,137.33,10.89156766]
[1745159758725,72.526,137.36,137.34,14.38]
[1745159758925,72.526,137.36,137.35,249.44]
[1745159759928,72.526,137.36,137.35,260.33156766]
[1745159760437,72.526,137.36,137.35,249.44]
[1745159761338,83.41756766,137.36,137.35,249.44]
[1745159766351,54.5208383,137.36,137.35,249.44]
[1745159766531,56.1357383,137.36,137.35,249.44]
[1745159766732,74.78538716,137.36,137.35,249.44]
[1745159766932,18.64964886,137.35,137.34,263.78]
[1745159767451,29.54121652,137.35,137.34,263.78]
[1745159768032,10.89156766,137.35,137.34,263.78]
[1745159775071,55.54121652,137.35,137.27,1.512]
[1745159775265,82.4,137.33,137.32,249.42]
[1745159775445,18.64964886,137.34,137.32,263.8]
[1745159776555,10.89156766,137.33,137.32,263.8]
[1745159776952,10.89156766,137.33,137.32,14.38]
[1745159777149,10.89156766,137.33,137.3,249.42]
[1745159777363,10.89156766,137.31,137.3,249.42]
[1745159777673,10.89156766,137.31,137.24,10.92156766]
[1745159777864,10.89156766,137.28,137.24,10.92156766]
[1745159778184,10.89156766,137.28,137.24,0.03]
[1745159778984,10.89156766,137.27,137.24,0.03]
[1745159779756,26.0,137.31,137.25,10.89156766]
[1745159779965,10.89156766,137.3,137.25,10.89156766]
[1745159780375,93.29156766,137.3,137.25,10.89156766]
[1745159780668,10.89156766,137.28,137.24,10.92156766]
[1745159780873,10.89156766,137.29,137.24,10.92156766]
[1745159782982,10.89156766,137.28,137.24,10.92156766]
[1745159785090,82.4,137.3,137.26,10.89156766]
[1745159785462,82.4,137.3,137.28,10.89156766]
[1745159785793,93.29156766,137.32,137.27,10.89156766]
[1745159786976,10.89156766,137.31,137.25,263.86]
[1745159787183,10.89156766,137.29,137.25,263.86]
[1745159787380,10.89156766,137.28,137.25,263.86]
[1745159787763,10.89156766,137.29,137.25,263.86]
[1745159787974,10.89156766,137.3,137.25,274.75156766]
[1745159788358,82.4,137.31,137.25,263.86]
[1745159788588,10.89156766,137.28,137.25,263.86]
[1745159791691,10.89156766,137.29,137.25,263.86]
[1745159792372,93.29156766,137.3,137.25,263.86]
[1745159793107,82.4,137.33,137.29,10.89156766]
[1745159793397,82.4,137.35,137.31,10.89156766]
[1745159795297,99.33204987,137.35,137.3,31.31204987]
[1745159795893,16.93204987,137.33,137.3,14.38]
[1745159797600,99.33204987,137.32,137.3,14.38]
[1745159797772,99.33204987,137.32,137.31,249.48]
[1745159798305,82.4,137.32,137.31,249.48]
[1745159803407,82.4,137.35,137.31,249.48]
[1745159803588,82.4,137.35,137.31,266.41204987]
[1745159803899,99.33204987,137.35,137.31,249.48]
[1745159809612,82.4,137.35,137.31,266.41204987]
[1745159810682,82.4,137.35,137.32,16.93204987]
[1745159810887,0.063,137.36,137.32,16.93204987]
[1745159813518,16.93204987,137.35,137.31,266.41204987]
[1745159813816,16.93204987,137.34,137.31,249.48]
[1745159815206,99.33204987,137.35,137.31,249.48]
[1745159815423,93.23870631,137.35,137.31,249.48]
[1745159816517,82.4,137.35,137.31,260.31870631]
[1745159818316,82.4,137.35,137.32,14.36]
[1745159819025,82.4,137.35,137.32,25.19870631]
[1745159819196,82.4,137.35,137.32,14.36]
[1745159820425,0.063,137.36,137.32,25.19870631]
[1745159820631,0.063,137.36,137.33,10.83870631]
[1745159820809,0.063,137.36,137.34,10.83870631]
[1745159822731,0.063,137.36,137.33,10.83870631]
[1745159823137,0.063,137.36,137.32,26.70340631]
[1745159823710,0.063,137.36,137.33,10.83870631]
[1745159824325,0.063,137.36,137.34,10.83870631]
[1745159824530,0.063,137.36,137.35,10.83870631]
[1745159825032,0.063,137.36,137.35,55.48835517]
[1745159825815,0.063,137.36,137.35,98.84318041]
[1745159826015,0.063,137.36,137.35,55.48835517]
[1745159827832,0.063,137.36,137.35,69.84835517]
[1745159829721,0.063,137.36,137.35,14.36]
[1745159830128,0.063,137.36,137.35,25.19870631]
[1745159832423,0.063,137.36,137.35,14.36]
[1745159834542,10.90170631,137.36,137.35,14.36]
[1745159835333,0.063,137.36,137.35,14.36]
[1745159837556,10.90170631,137.36,137.35,14.36]
[1745159837945,12.48890631,137.36,137.35,14.36]
[1745159838148,55.84373155,137.36,137.35,14.36]
[1745159838459,12.48890631,137.36,137.35,14.36]
[1745159838833,1.6502,137.36,137.35,14.36]
[1745159839041,12.48890631,137.36,137.35,14.36]
[1745159839751,10.90170631,137.36,137.35,14.36]
[1745159840062,0.063,137.36,137.35,14.36]
[1745159842765,0.063,137.36,137.35,263.72]
[1745159850873,10.90170631,137.36,137.35,263.72]
[1745159853247,17.50470631,137.36,137.35,263.72]
[1745159861158,10.90170631,137.36,137.35,263.72]
[1745159862850,26.063,137.36,137.35,263.72]
[1745159863054,36.90170631,137.36,137.35,263.72]
[1745159869594,26.063,137.36,137.35,263.72]
[1745159869767,36.90170631,137.36,137.35,263.72]
[1745159872701,26.063,137.36,137.35,263.72]
[1745159872999,36.90170631,137.36,137.35,263.72]
[1745159873669,26.063,137.36,137.35,263.72]
[1745159873874,36.90170631,137.36,137.35,263.72]
[1745159875198,0.063,137.36,137.35,263.72]
[1745159875383,10.90170631,137.36,137.35,263.72]
[1745159875883,0.063,137.36,137.35,263.72]
[1745159876190,10.90170631,137.36,137.35,263.72]
[1745159895530,10.90170631,137.36,137.35,14.36]
[1745159901140,98.90618041,137.36,137.35,14.36]
[1745159901302,72.90618041,137.36,137.35,14.36]
[1745159906119,26.0,137.33,137.3,249.44]
[1745159906323,10.83870631,137.31,137.3,249.44]
[1745159906524,29.48835517,137.31,137.3,263.8]
[1745159908055,55.48835517,137.31,137.3,263.8]
[1745159910059,26.0,137.29,137.28,0.063]
[1745159910232,36.83870631,137.29,137.28,0.063]
[1745159915241,36.83870631,137.29,137.28,263.923]
[1745159931374,55.48835517,137.29,137.28,263.923]
[1745159931549,18.64964886,137.28,137.26,0.063]
[1745159931870,62.0044741,137.28,137.27,14.36]
[1745159932892,72.84318041,137.28,137.27,14.36]
[1745159934760,72.84318041,137.28,137.26,0.063]
[1745159934972,10.83870631,137.27,137.26,0.063]
[1745159935181,10.83870631,137.27,137.26,14.423]
[1745159935573,108.274,137.25,137.24,0.03]
[1745159935894,36.83870631,137.25,137.24,14.39]
[1745159937199,55.48835517,137.25,137.24,14.39]
[1745159942802,36.83870631,137.25,137.24,14.39]
[1745159943208,10.83870631,137.26,137.24,14.39]
[1745159943878,10.83870631,137.25,137.24,14.39]
[1745159955423,10.83870631,137.25,137.24,264.01]
[1745159959629,26.0,137.27,137.24,264.01]
[1745159959998,36.83870631,137.27,137.24,264.01]
[1745159960631,10.83870631,137.26,137.24,264.01]
[1745159974532,44.64964886,137.29,137.24,264.01]
[1745159974732,26.0,137.31,137.25,10.83870631]
[1745159974931,36.83870631,137.31,137.26,10.83870631]
[1745159975121,26.0,137.31,137.26,10.83870631]
[1745159975320,36.83870631,137.31,137.26,10.83870631]
[1745159975727,10.83870631,137.29,137.24,274.84870631]
[1745159977431,10.83870631,137.3,137.25,10.83870631]
[1745159977614,26.0,137.31,137.26,10.83870631]
[1745159977615,36.83870631,137.31,137.26,10.83870631]
[1745159977814,10.90170631,137.32,137.26,10.83870631]
[1745159978317,10.90170631,137.32,137.27,10.83870631]
[1745159978540,0.063,137.32,137.27,10.83870631]
[1745159978851,82.4,137.3,137.27,10.83870631]
[1745159981328,82.4,137.3,137.28,10.83870631]
[1745159981529,82.4,137.3,137.29,14.36]
[1745159989047,82.4,137.3,137.29,263.88]
[1745159995247,93.23870631,137.3,137.29,263.88]
[1745159996864,10.83870631,137.3,137.29,263.88]
[1745160001978,10.90170631,137.32,137.29,263.88]
[1745160003576,10.83870631,137.31,137.29,263.88]
[1745160003798,0.063,137.32,137.29,274.71870631]
[1745160003981,0.063,137.32,137.3,10.83870631]
[1745160004304,0.063,137.32,137.29,274.71870631]
[1745160004798,0.063,137.32,137.29,263.88]
[1745160004995,0.063,137.32,137.29,274.71870631]
[1745160006064,0.063,137.32,137.3,10.83870631]
[1745160006491,0.063,137.32,137.29,274.71870631]
[1745160006687,0.063,137.32,137.31,10.83870631]
[1745160007272,0.063,137.32,137.3,10.83870631]
[1745160008403,0.063,137.32,137.29,274.71870631]
[1745160011405,0.063,137.32,137.29,263.88]
[1745160015805,0.063,137.32,137.29,274.71870631]
[1745160018307,0.063,137.32,137.29,263.88]
[1745160018496,0.063,137.32,137.29,274.71870631]
[1745160018804,0.063,137.32,137.29,263.88]
[1745160022882,10.90170631,137.32,137.29,263.88]
[1745160023207,82.4,137.31,137.29,263.88]
[1745160026102,0.063,137.32,137.29,263.88]
[1745160026402,0.063,137.32,137.3,10.83870631]
[1745160026705,0.063,137.32,137.29,263.88]